Cogmind - Beta 9.4 @@@ ROGUE MODE // 2020.03.16 @ 21:47:45 Player: Carlyle Result: Destroyed by G-34 Mercenary with Small Laser Performance ------------- Evolutions (1) 500 Regions Visited (3) 600 Robots Destroyed (27) 135 Value Destroyed (699) 699 Prototype IDs (2) 40 Alien Tech Used (0) 0 Bonus (34) 34 TOTAL SCORE: 2008 Bonus ------- Follower Combat Kills 39 Friendly Fire -5 Cogmind --------- Core Integrity 0/400 Matter 300/300 Energy 380/380 System Corruption 7% Temperature Cool (6) Movement Core (250) Ox4 Location -9/Materials Parts ------- > --- POWER (1) -------- Heavy Ion Engine > --- PROPULSION (2) --- (None) > --- UTILITY (4) ------ Small Storage Unit Small Battery > --- WEAPON (2) ------- (None) > --- INVENTORY (6) ---- Improved Ion Engine Aluminum Leg Aluminum Leg High-capacity Matter Pod (200) Hardened Light Armor Plating Rocket Launcher Peak State ------------ > --- POWER ------------ Improved Ion Engine > --- PROPULSION ------- Aluminum Leg Aluminum Leg > --- UTILITY ---------- Heat Sink Small Storage Unit Small Battery Improved Signal Interpreter > --- WEAPON ----------- EM Shotgun EM Shotgun > --- INVENTORY -------- Improved Ion Engine Aluminum Leg High-capacity Matter Pod EM Shotgun EM Shotgun Rocket Launcher [Rating: 14] Favorites ----------- Power Improved Ion Engine Engine Improved Ion Engine Propulsion Aluminum Leg Leg Aluminum Leg Utility Small Storage Unit Device Improved Heat Sink Storage Small Storage Unit Processor Improved Signal Interpreter Protection Hardened Light Armor Plating Weapon EM Shotgun Energy Gun EM Shotgun Ballistic Gun Assault Rifle Launcher Grenade Launcher Build | -11 -10 -10 -9 ------- Run | Scr Mat Min Mat Slots Evolved 2 | . . . 2 Power . | . . . . Propulsion . | . . . . Utility 2 | . . . 2 Weapon . | . . . . Parts Attached 25 | 6 5 2 12 Power 4 | 1 1 . 2 Engine 4 | 1 1 . 2 Core . | . . . . Reactor . | . . . . Propulsion 3 | 2 . . 1 Treads . | . . . . Leg 3 | 2 . . 1 Wheel . | . . . . Hover . | . . . . Flight . | . . . . Utility 7 | 1 2 . 4 Device 3 | . 1 . 2 Storage 2 | 1 1 . . Processor 1 | . . . 1 Hackware . | . . . . Protection 1 | . . . 1 Artifact . | . . . . Weapon 11 | 2 2 2 5 Energy Gun 9 | 1 2 1 5 Energy Cannon . | . . . . Ballistic Gun 1 | 1 . . . Ballistic Cannon . | . . . . Launcher 1 | . . 1 . Special Weapon . | . . . . Impact Weapon . | . . . . Slashing Weapon . | . . . . Piercing Weapon . | . . . . Special Melee Weapon . | . . . . Unidentified Prototypes 2 | . . . 2 Parts Lost 10 | . . . 10 Power 1 | . . . 1 Propulsion . | . . . . Utility 2 | . . . 2 Weapon 7 | . . . 7 Highest Loss Streak 3 | . . . 3 Average Slot Usage (%) 92 | . 96 100 86 Engine 12 | . 14 14 10 Leg 23 | . 28 28 19 Device 4 | . 9 . 5 Storage 22 | . 15 28 22 Processor 2 | . . . 5 Protection 2 | . . . 5 Energy Gun 21 | . 23 27 16 Naked Turns . | . . . . Heaviest Build 23 | 13 18 18 23 Greatest Support 20 | 20 20 20 20 Greatest Overweight (x) 4 | 1 . . 4 Average Overweight (x) . | . . . . Largest Inventory Capacity 6 | 6 6 6 6 Average Capacity 5 | 5 6 6 6 Most Carried 6 | 5 6 6 6 Average Carried 5 | 3 5 6 5 Final Capacity 6 | 6 6 6 6 Final Carried 6 | 5 6 6 6 Class Distribution -------------------- 100% | Mutant Dominant Class ---------------- Mutant | -10/Materials Mutant | -10/Mines Mutant | -9/Materials Resources | -11 -10 -10 -9 ----------- Run | Scr Mat Min Mat Matter Collected 486 | 260 25 82 119 Remotely . | . . . . Salvage Created 1189 | 141 61 26 961 Parts 59 | 4 6 4 45 Haulers Intercepted 2 | . . . 2 Recyclers Shooed 1 | . . . 1 Parts Field Recycled . | . . . . Retrieved Matter . | . . . . Parts Self-Destructed . | . . . . Prevented . | . . . . Kills | -11 -10 -10 -9 ------- Run | Scr Mat Min Mat Combat Hostiles Destroyed 19 | . 3 1 15 Guns 18 | . 3 . 15 AOE 1 | . . 1 . Classes Destroyed 8 | 2 2 1 3 Worker 1 | . . 1 . Tunneler 2 | 2 . . . Hauler 2 | . . . 2 Recycler 2 | 1 . . 1 Watcher 1 | . 1 . . Swarmer 4 | . 3 1 . Grunt 9 | . . . 9 Sentry 6 | . . . 6 Best Kill Streak 4 | 1 3 2 4 Combat Bots Only 4 | . 2 1 4 Max Kills in Single Turn 2 | 1 2 1 1 Gunslinging 1 | . 1 . . Exploded 1 | . . 1 . Melee . | . . . . Uniques/NPCs Destroyed . | . . . . Combat | -11 -10 -10 -9 -------- Run | Scr Mat Min Mat Damage Taken 1496 | . 116 64 1316 Core 463 | . 28 35 400 Absorbed by Shields . | . . . . Core Remaining (%) 87 | 100 . 74 . Volleys Fired 87 | 21 9 2 55 Largest 2 | 1 2 1 2 Hottest 90 | 40 90 30 90 Shots Fired 141 | 21 18 3 99 Gun 139 | 21 18 1 99 Cannon . | . . . . Launcher 2 | . . 2 . Special . | . . . . Kinetic . | . . . . Thermal . | . . . . Explosive 2 | . . 2 . Electromagnetic 139 | 21 18 1 99 Robot Hit Streak 16 | 2 3 . 16 Robot Miss Streak 4 | 4 4 . 4 Penetration Max . | . . . . Secondary Targets 3 | . 1 . 2 Max Gunslinging Chain 1 | . 1 . 1 Shots Hit Robots 102 | 9 14 . 79 Core Hits 53 | 3 5 3 42 Critical Hits . | . . . . Critical Kills . | . . . . Critical Parts Destroyed . | . . . . Melee Attacks . | . . . . Impact . | . . . . Slashing . | . . . . Piercing . | . . . . Sneak Attacks . | . . . . Combat Hostiles . | . . . . Follow-up Attacks . | . . . . Damage Inflicted 1548 | 191 125 92 1140 Guns 1434 | 170 125 . 1139 Cannons . | . . . . Explosions 113 | 21 . 92 . Melee . | . . . . Ramming 1 | . . . 1 Kinetic . | . . . . Thermal 21 | 21 . . . Explosive 92 | . . 92 . Electromagnetic 1434 | 170 125 . 1139 Impact . | . . . . Slashing . | . . . . Piercing . | . . . . Highest Corruption 7 | . 6 6 7 Average Corruption 5 | . 2 6 4 Corruption Purged . | . . . . Effects 20 | . . 11 9 Message Errors 6 | . . 4 2 Matter Fused 4 | . . 4 . Energy Discharges 2 | . . . 2 Parts Rejected 2 | . . . 2 Data Loss (minor) 2 | . . 1 1 Data Loss (major) 1 | . . 1 . Misfires 1 | . . 1 . Targeting Errors 1 | . . . 1 Weapon Failures 1 | . . . 1 Overload Shots . | . . . . Overflow Damage . | . . . . Projectiles . | . . . . Explosions . | . . . . Melee . | . . . . Knockbacks . | . . . . Impact . | . . . . Kinetic . | . . . . Secondary . | . . . . Self-Inflicted Damage 25 | . . 25 . Shots 1 | . . 1 . Rammed 1 | . . . 1 Targets Rammed 1 | . . . 1 Kicked . | . . . . Crushed . | . . . . Highest Temperature 231 | . 231 8 90 Average Temperature 46 | . 99 6 25 Received Heat Transfer 522 | . . . 522 Siege Activations . | . . . . Robots Corrupted 1 | . . . 1 Combat Hostiles . | . . . . Parts Fried 12 | 3 1 . 8 Impact Corruptions . | . . . . Robots Melted . | . . . . Combat Hostiles . | . . . . Parts Melted . | . . . . Heat Transferred 50 | 50 . . . Parts Sabotaged . | . . . . Parts Stolen . | . . . . Parts Stripped . | . . . . Power Chain Reactions 1 | 1 . . . Missiles Intercepted . | . . . . Alert | -11 -10 -10 -9 ------- Run | Scr Mat Min Mat Peak Influence 338 | 15 116 165 338 Average Influence 120 | 4 56 90 179 Maximum Alert Level 1 | . . . 1 Low Security (%) 82 | 100 100 100 64 Level 1 17 | . . . 35 Level 2 . | . . . . Level 3 . | . . . . Level 4 . | . . . . Level 5 . | . . . . High Security . | . . . . Max Security . | . . . . Squads Dispatched 3 | . 1 . 2 Investigation 1 | . . . 1 Extermination . | . . . . Reinforcement 2 | . 1 . 1 Assault . | . . . . Garrison . | . . . . Intercept . | . . . . Construction Impeded . | . . . . Haulers Reinforced . | . . . . Stealth | -11 -10 -10 -9 --------- Run | Scr Mat Min Mat Distress Signals 5 | . 1 . 4 Communications Jammed . | . . . . Distress Signals . | . . . . Times Spotted 51 | . 10 3 38 Peak Tracking Total 8 | . 4 3 8 Tactical Retreats 8 | . 1 . 7 Traps | -11 -10 -10 -9 ------- Run | Scr Mat Min Mat Traps Triggered 9 | . 4 . 5 Indirectly . | . . . . Trap Hack Attempts . | . . . . Triggered . | . . . . Disarmed . | . . . . Reprogrammed . | . . . . Reused . | . . . . Traps Extracted . | . . . . Installed . | . . . . Triggered . | . . . . Machines | -11 -10 -10 -9 ---------- Run | Scr Mat Min Mat Machines Disabled 1 | . . 1 . Max in Single Turn 1 | . . 1 . Machines Sabotaged . | . . . . Garrisons Compromised . | . . . . Overloaded Fab Kills . | . . . . Fab Network Shutdowns . | . . . . Hacking | -11 -10 -10 -9 --------- Run | Scr Mat Min Mat Machines Accessed 2 | . . . 2 Terminals 2 | . . . 2 Fabricators . | . . . . Repair Stations . | . . . . Recycling Units . | . . . . Scanalyzers . | . . . . Garrison Access . | . . . . Total Hacks 5 | . . . 5 Successful 4 | . . . 4 Failed 1 | . . . 1 Catastrophic . | . . . . Database Lockouts . | . . . . Manual 3 | . . . 3 Terminals 5 | . . . 5 Fabricators . | . . . . Repair Stations . | . . . . Recycling Units . | . . . . Scanalyzers . | . . . . Garrison Access . | . . . . Terminal Hacks 2 | . . . 2 Emergency Access Points 1 | . . . 1 Maintenance Status 1 | . . . 1 Fabricator Hacks . | . . . . Repair Station Hacks . | . . . . Recycling Unit Hacks . | . . . . Scanalyzer . | . . . . Garrison Access Hacks . | . . . . Unauthorized Hacks 4 | . . . 4 Terminals 2 | . . . 2 Track 2 | . . . 2 Fabricators . | . . . . Repair Stations . | . . . . Recycling Units . | . . . . Scanalyzers . | . . . . Garrison Access . | . . . . Data Cores Recovered . | . . . . Used . | . . . . Hacking Detections 2 | . . . 2 Full Trace Events . | . . . . Feedback Events . | . . . . Feedback Blocked . | . . . . Robot Schematics Acquired . | . . . . Robots Built . | . . . . Matter . | . . . . Time . | . . . . Total Robot Build Rating . | . . . . Part Schematics Acquired . | . . . . Parts Built . | . . . . Matter . | . . . . Time . | . . . . Total Part Build Rating . | . . . . Parts Repaired . | . . . . Time . | . . . . Parts Recycled . | . . . . Recycled Matter . | . . . . Retrieved Matter . | . . . . Retrieved Components . | . . . . Parts Scanalyzed . | . . . . Part Schematics Acquired . | . . . . Parts Damaged . | . . . . Bothacking | -11 -10 -10 -9 ------------ Run | Scr Mat Min Mat Used RIF Installer . | . . . . Robots Hacked . | . . . . Non-combat . | . . . . Combat . | . . . . Robot Hacks Applied . | . . . . Relay Couplers Released . | . . . . Robots Rewired 1 | . . . 1 Allies Hacked . | . . . . Hacks Repelled . | . . . . Allies | -11 -10 -10 -9 -------- Run | Scr Mat Min Mat Total Allies 3 | . . 2 1 Largest Group 2 | . . 2 1 Highest-Rated Group 42 | . . 42 8 Highest-Rated Ally 31 | . . 31 8 Total Orders . | . . . . Ally Attacks 12 | . . 10 2 Total Damage 249 | . . 227 22 Kills 3 | . . 3 . Allies Corrupted . | . . . . Allies Melted . | . . . . Intel | -11 -10 -10 -9 ------- Run | Scr Mat Min Mat Robot Analysis Total . | . . . . Derelict Logs Recovered 1 | . . 1 . Drone Launches . | . . . . Drone Recoveries . | . . . . Exploration | -11 -10 -10 -9 ------------- Run | Scr Mat Min Mat Turns Passed 1585 | 143 240 442 760 Spaces Moved 920 | 75 154 333 358 Core 21 | 9 . . 12 Treads . | . . . . Legs 899 | 66 154 333 346 Wheels . | . . . . Hover . | . . . . Flight . | . . . . Fastest Speed 50 | 50 120 120 120 Average Speed 126 | 113 120 120 137 Slowest Speed 250 | 120 120 120 250 Overloaded Moves . | . . . . Propulsion Burnouts . | . . . . Robots Hopped . | . . . . Cave-ins Triggered . | . . . . Exploration Rate (%) 36 | 5 30 76 36 Regions Visited 3 Branch Regions 1 Pre-discovered Areas 1 | . . 1 . Known Exits Taken . | . . . . Unknown Exits Taken 3 | 1 1 1 . Scrap Searched 1 | . . 1 . Spaces Dug . | . . . . Terrain Destroyed 24 | 4 . 20 . Melee . | . . . . Projectile . | . . . . AOE 24 | 4 . 20 . Actions | -11 -10 -10 -9 --------- Run | Scr Mat Min Mat Total 1205 | 112 192 373 528 Wait 131 | . 11 35 85 Move 917 | 74 153 332 358 Hop . | . . . . Pick Up 30 | 11 7 1 11 Fast Attach 4 | . 2 . 2 Attach 15 | 6 1 . 8 Detach . | . . . . Swap 6 | . 2 2 2 Drop 13 | . 7 1 5 Fire 87 | 21 9 2 55 Melee . | . . . . Ram . | . . . . Kick 1 | . . . 1 Crush . | . . . . Escape Stasis . | . . . . Rewire 1 | . . . 1 Trap . | . . . . Miscellaneous . | . . . . Route ------- -11/Scrapyard -10/Materials -10/Mines -9/Materials History --------- Turn | Location | Event 17 | -11/Scrapyard | Discovered new exit (range 14) 144 | -11/Scrapyard | Entered Materials 284 | -10/Materials | Discovered new exit (range 15) 311 | -10/Materials | Build established: Mutant 384 | -10/Materials | Entered Mines 441 | -10/Mines | Learned location of Storage (-8) 728 | -10/Mines | Discovered new exit (range 12) 826 | -10/Mines | Entered Materials 826 | -9/Materials | Evolved 2 slots: Utility x2 1407 | -9/Materials | Lost 3 parts (1u2w) 1443 | -9/Materials | Core integrity fell below 50% 1550 | -9/Materials | Core integrity fell below 20% 1586 | -9/Materials | Destroyed by G-34 Mercenary with Small Laser Last Messages --------------- 01441_ Imp. EM Shotgun destroyed. 01441_ K-01 Serf collects debris. 01442_ Slammed into L-31 Rogue. 01442_ Destabilizing: Core damaged (-8). 01445_ K-01 Serf collects debris. 01452_ R-06 Scavenger collects Aluminum Leg. 01455_ R-06 Scavenger collects Ion Engine. 01468_ System corrupted: Aluminum Leg rejected. 01495_ System corrupted: Energy discharge (-83). 01510_ Triggered Alarm Trap. 01510_ An alarm sounds. 01510_ ALERT: Alarm triggered, dispatching investigation squad. 01524_ K-01 Serf cleans the Nuclear Reactor. 01537_ Hrd. Light Armor Plating destroyed. 01538_ K-01 Serf cleans the Repair Station. 01541_ CMS,FQ&K 1N>WF8857RK9LXQBAVXBHP AB 01557_ System corrupted: Aluminum Leg rejected. 01577_ Triggered Shock Trap. 01577_ The floor emits a surge of raw power. 01577_ System corrupted (+1). Map ----- +----------------------------------------------------+ | | | | | ???????????????????????????????? | | ???????????????????????????????? | | ???????????????????????????????? | | ???????????????????????????????? | | ???????????????????????????????? | | ???????????????????????????????? | | ???????????????????????????????? | | ???????????????????????????????? | | ??????? ???????????????????????? | | ??????? ???????????????????????? | | ??????? ???????????????????????? | | ??????? ???????????????????????? | | ??????? ???????????????????????? | | ??????? ###????????????????????? | | ??????? #????????????????????? | | ??????+ #????? ??????????????? | | ??????# #???? ???????????????? | | ??????# #?? ???????????????? | | ??????# ### ???????????????? | | ??????# ?#??????????????? | | ??????# #??????????????? | | ??????# """"" #??????????????? | | ?####?# """"" ##?????????????? | | #] *#@ """"" ##+###?????#/## | | # " # ????? | | # """ l ???? | | # """ #l ???? | | # """ ## g g #####??????# | | # "" ??# #####+#####????????# | | # """??# #? #????????# | | ? "???# # #????????+ | | ? ""???#g# #????????# | | ? ????#YY #????????# | | #??????# # """"" #????????# | | ???????# # """""???????????# | | ???????#=+ """""???????????+ | | ???????# # #????????# | | ????#### #####################+# | | ????# / | | ????# ############ | | ????# #??????????# """ | | ????# #??????????#! """ | | ????# #??????????# """ | | ????# ????????? + | | ????# ???????### | | ????#+##+###### ????????######## | | ??????????????? #??????????????? | | ????????????????#??????????????? | +----------------------------------------------------+ Best States ------------- Heat Dissipation 42 Energy Generation 14 Energy Capacity 380 Matter Stores 300 Matter Capacity 300 Sight Range 16 Terrain Scan Range 16 Terrain Scan Density 10 Armor Coverage 150 Evasion (%) 40 Item Schematics ----------------- None Robot Schematics ------------------ None Fabricated ------------ Nothing Alien Tech Used ----------------- None Achievements -------------- None Challenges ------------ None Game ------ Seed PointCooledTreads Manual? 0 Play Time 00:20:58 Cumulative 234.1 hours Start 2020.03.16 @ 18:00:51 End 2020.03.16 @ 21:47:45 Sessions 1 Manual Loads 0 Difficulty Rogue Special Mode None Game No. 153 Rogue 152 Adventurer 1 Explorer 0 Win Type - Total 1 Types 1/0/0/0/0/0/0 Lore% 54 Gallery% 66 Achievement% 44 Wizard Run 0 Options --------- ASCII 0 Keyboard 0 Movement Arrows Keybinds 0 Fullscreen 1 Font 16/Cog Map View 76x50 Tactical HUD 1 Map Filters NONE Filters NONE Steam 1 RUN: 03269295-4b4f-45ed-9c11-f524896c8758